bitfinex/quotes_ETHUSD_20220311
["timestamp","ask_amount","ask_price","bid_price","bid_amount"]
[1647036466066,1.21371375,2569.2,2568.9,1.81835084]
[1647036466267,1.21371375,2569.2,2569.0,0.00407239]
[1647036466871,1.21371375,2569.2,2569.0,1.94987239]
[1647036467273,1.21371375,2569.2,2569.0,2.85384403]
[1647036467673,1.21371375,2569.2,2569.0,1.94970541]
[1647036468522,1.21371375,2569.2,2569.0,1.9458]
[1647036468720,2.81355239,2569.4,2569.0,1.94953939]
[1647036468921,1.3523752,2569.1,2569.0,1.94953939]
[1647036469723,1.3523752,2569.1,2569.0,1.9458]
[1647036470522,1.3023752,2569.1,2569.0,1.9458]
[1647036473075,0.15350986,2569.1,2569.0,1.9458]
[1647036473476,0.10350986,2569.1,2569.0,1.9458]
[1647036473675,0.97288,2569.2,2569.0,1.9458]
[1647036473876,0.10350986,2569.1,2569.0,1.9458]
[1647036474275,0.10350986,2569.1,2569.0,2.01413843]
[1647036475178,0.97288,2569.2,2569.0,2.01413843]
[1647036475383,0.97268,2569.8,2569.0,2.01413843]
[1647036475579,0.01,2569.9,2569.1,0.471]
[1647036475828,4.84373298,2570.2,2569.2,4.84158014]
[1647036475829,2.10533298,2570.2,2569.2,4.84158014]
[1647036476030,2.11533298,2570.2,2569.3,0.471]
[1647036476232,2.0539,2570.2,2569.3,4.34004014]
[1647036476430,3.63819996,2570.6,2569.6,2.89649014]
[1647036476431,0.13819996,2570.6,2569.6,2.89649014]
[1647036476630,6.1864,2571.2,2569.6,2.89649014]
[1647036476631,0.10350986,2571.0,2569.7,0.471]
[1647036476832,0.10350986,2571.0,2569.8,1.94466]
[1647036476833,0.10350986,2570.7,2569.8,1.94466]
[1647036477033,0.14942189,2571.0,2569.9,0.55345932]
[1647036477234,0.14942189,2571.0,2570.2,0.9723]
[1647036477433,0.14942189,2571.0,2570.4,0.97229]
[1647036477634,0.14942189,2571.0,2570.4,2.91688]
[1647036477837,0.97234,2570.8,2570.7,0.90214586]
[1647036478039,0.97234,2570.8,2570.7,0.90369524]
[1647036478637,2.24650986,2571.5,2570.7,0.90369524]
[1647036478838,0.10350986,2571.5,2570.8,1.96220314]
[1647036479039,0.10350986,2571.5,2571.0,0.08289359]
[1647036479237,0.01,2571.8,2571.0,0.98658882]
[1647036479238,0.21936535,2571.4,2571.0,0.98658882]
[1647036479436,0.01,2571.8,2571.0,0.98658882]
[1647036479437,0.01,2571.8,2571.1,0.98038532]
[1647036479674,0.01,2571.8,2570.8,11.97160414]
[1647036479675,0.00406024,2572.0,2571.7,0.90369523]
[1647036479875,0.24469767,2572.0,2571.7,0.90369523]
[1647036480272,1.21658767,2572.0,2571.7,2.84742523]
[1647036480578,1.21252743,2572.0,2571.7,2.84742523]
[1647036480776,1.21658845,2572.0,2571.7,2.84742523]
[1647036481472,1.21658845,2572.0,2571.9,0.90369523]
[1647036481679,1.21252743,2572.0,2571.9,0.90369523]
[1647036482073,0.24473338,2572.0,2571.9,0.90369523]
[1647036482276,0.00409595,2572.0,2571.9,0.90369523]
[1647036482475,0.00409595,2572.0,2571.9,4.23532578]
[1647036482877,0.10350986,2572.2,2571.9,4.23532578]
[1647036483079,5.09548606,2572.5,2572.1,0.90369523]
[1647036483321,2.95248606,2572.5,2572.3,1.166]
[1647036483522,2.95248606,2572.5,2572.4,4.30996578]
[1647036483721,1.94352,2572.5,2572.4,4.30996578]
[1647036486325,2.98465956,2572.5,2572.4,4.30996578]
[1647036486527,2.98465956,2572.5,2572.4,2.86765678]
[1647036486725,6.48465956,2572.5,2572.4,2.86765678]
[1647036488180,6.48465956,2572.5,2572.4,1.166]
[1647036488779,6.48465956,2572.5,2572.0,0.47140242]
[1647036488780,0.30682853,2572.2,2572.0,0.47140242]
[1647036488979,1.27883853,2572.2,2572.0,0.47140242]
[1647036490282,2.25087653,2572.2,2572.0,0.47140242]
[1647036490478,2.25496627,2572.2,2572.0,0.47140242]
[1647036490685,2.25496627,2572.2,2571.9,0.47140242]
[1647036490927,1.94415,2572.1,2571.8,0.75909213]
[1647036491127,1.94415,2572.1,2571.9,1.1659949]
[1647036491529,1.94823981,2572.1,2571.9,1.1659949]
[1647036492531,0.24039962,2572.0,2571.9,1.1659949]
[1647036492731,3.74039962,2572.0,2571.9,1.1659949]
[1647036492930,0.24039962,2572.0,2571.9,1.1659949]
[1647036493931,0.24039962,2572.0,2571.5,2.19415]
[1647036493932,3.74039962,2572.0,2571.5,2.19415]
[1647036494133,1.19591689,2571.8,2571.4,1.94429]
[1647036494332,0.25566872,2571.6,2571.4,1.94429]
[1647036494586,0.25566872,2571.6,2570.7,0.01]
[1647036494775,5.45846872,2571.6,2570.8,0.59654366]
[1647036494976,0.85998889,2571.1,2570.6,0.08393603]
[1647036495177,2.07104771,2571.1,2570.9,1.94461]
[1647036495376,0.97229,2571.1,2570.9,1.94461]
[1647036496581,2.03351705,2571.1,2570.9,1.94461]
[1647036496982,5.53351705,2571.1,2570.9,1.94461]
[1647036497183,3.5,2571.0,2570.9,1.94461]
[1647036497582,3.5,2571.0,2570.8,1.94462]
[1647036499630,3.5,2571.0,2570.9,0.02281513]
[1647036502992,3.5,2571.0,2570.5,1.94494]
[1647036503291,1.09345246,2570.7,2570.5,1.94494]
[1647036503492,3.24846056,2570.5,2570.3,1.94515]
[1647036504094,5.19379056,2570.5,2570.3,1.94515]
[1647036504292,7.92829047,2570.4,2570.2,0.01625353]
[1647036504491,7.02403425,2570.3,2569.9,1.94548]
[1647036504891,7.88280403,2570.3,2569.9,1.96173566]
[1647036505091,7.88280403,2570.3,2569.9,0.01625566]
[1647036505290,0.9728495,2570.2,2569.9,0.01625566]
[1647036505491,0.22244256,2570.0,2569.9,0.01625566]
[1647036505691,4.42829047,2570.0,2569.5,0.0196097]
[1647036505931,4.42829047,2570.0,2569.6,0.59816157]
[1647036506131,3.5,2569.9,2569.6,0.59816157]
[1647036506731,4.4728955,2569.9,2569.6,0.59816157]
[1647036506938,1.00979129,2569.8,2569.6,0.59816157]
[1647036507333,3.5,2569.7,2569.5,0.0196097]
[1647036507533,3.96088436,2569.6,2569.5,0.0196097]
[1647036507935,0.973008,2569.5,2569.2,0.21908111]
[1647036508134,0.973008,2569.5,2569.1,0.08164307]
[1647036508135,0.973,2569.4,2569.3,1.94592]
[1647036508335,0.973008,2569.5,2569.3,1.94592]
[1647036508535,2.919008,2569.5,2569.4,0.00399909]
[1647036508939,0.973008,2569.5,2569.0,0.01599844]
[1647036509338,0.973008,2569.5,2568.9,0.08102107]
[1647036509589,3.96088436,2569.6,2569.3,1.94592]
[1647036510579,5.90689436,2569.6,2569.3,1.94592]
[1647036510978,5.85689436,2569.6,2569.3,1.94592]
[1647036512184,0.9729904,2569.5,2569.3,1.94592]
[1647036512989,6.4190304,2569.5,2569.3,1.94592]
[1647036513185,7.20193038,2569.4,2569.3,1.94592]
[1647036513936,7.20313038,2569.4,2569.3,1.94592]
[1647036514336,3.70313038,2569.4,2569.3,1.94592]
[1647036519381,3.72147294,2569.4,2569.3,1.96794265]
[1647036519985,3.72027294,2569.4,2569.3,1.96794265]
[1647036521427,4.54052399,2569.4,2569.3,1.96794265]
[1647036522635,4.54052399,2569.4,2568.9,2.02690107]
[1647036522934,3.51545671,2569.0,2568.9,2.02690107]
[1647036523135,3.51545671,2569.0,2568.9,3.97290107]
[1647036525977,3.51545671,2569.0,2568.9,2.02702107]
[1647036526779,3.51545671,2569.0,2568.9,1.946]
[1647036527283,3.51545671,2569.0,2568.9,2.50202213]
[1647036527483,4.47150721,2569.0,2568.9,2.50202213]
[1647036528927,2.77283595,2569.0,2568.9,2.50202213]
[1647036529529,2.77283595,2569.0,2568.9,2.45202213]
[1647036530229,2.77403595,2569.0,2568.9,2.45202213]
[1647036531131,2.81872671,2569.0,2568.9,2.45202213]
[1647036532182,2.81872671,2569.0,2568.8,2.19234313]
[1647036532385,2.81872671,2569.0,2568.8,2.19354907]
[1647036532582,0.0474646,2568.9,2568.8,2.19354907]
[1647036532981,0.0474646,2568.9,2568.8,0.00120594]
[1647036533282,0.0474646,2568.9,2568.7,0.97323]
[1647036533481,3.44681121,2568.8,2568.7,0.97323]
[1647036533683,3.44681121,2568.8,2568.7,0.97443599]
[1647036534686,3.44681121,2568.8,2568.7,0.97323]
[1647036536534,0.89881356,2568.8,2568.7,1.67152896]
[1647036536737,0.03391928,2569.0,2568.8,1.04813333]
[1647036536934,0.03391928,2569.0,2568.8,1.75543916]
[1647036537337,0.03391928,2569.0,2568.9,0.70730583]
[1647036538042,0.03391928,2569.0,2568.9,0.70798009]
[1647036538237,3.29415222,2569.0,2568.9,0.70798009]
[1647036538439,3.29415222,2569.0,2568.8,4.60319263]
[1647036538837,3.29415222,2569.0,2568.8,3.89521254]
[1647036539036,3.29415222,2569.0,2568.8,4.86649777]
[1647036539437,3.29415222,2569.0,2568.8,5.79009937]
[1647036539683,3.29415222,2569.0,2568.8,5.79406073]
[1647036539883,3.29415222,2569.0,2568.9,0.92779414]
[1647036540684,3.29415222,2569.0,2568.8,4.81881414]
[1647036540883,3.29415222,2569.0,2568.9,0.92779414]
[1647036540884,3.26023294,2569.0,2568.9,0.92779414]
[1647036542188,3.26023294,2569.0,2568.9,1.95742589]
[1647036542592,0.00407996,2569.5,2569.0,1.9454853]
[1647036542787,0.00407996,2569.5,2569.3,0.71000414]
[1647036542987,0.01,2569.9,2569.3,0.71000414]
[1647036543187,0.04643004,2570.0,2569.4,0.71000414]
[1647036543429,0.00410063,2569.5,2569.4,0.71000414]
[1647036544128,0.97266,2569.8,2569.4,0.71000414]
[1647036544329,0.97266,2569.8,2569.6,0.97269]
[1647036545630,0.97676066,2569.8,2569.6,0.97269]
[1647036546632,0.97266,2569.8,2569.6,0.97269]
[1647036546832,0.97675608,2569.8,2569.6,1.68297981]
[1647036547080,0.00409608,2569.8,2569.6,0.97269]
[1647036547286,0.00409608,2569.8,2569.7,0.71150012]
[1647036547890,4.42061013,2570.7,2570.0,4.0]
[1647036548086,2.86550013,2570.7,2570.1,2.91726]
[1647036548687,2.86550013,2570.7,2570.1,3.62895081]
[1647036548985,2.86550013,2570.7,2570.2,0.97243]
[1647036548986,0.01,2570.7,2570.2,0.97243]
[1647036549187,3.88413,2570.8,2570.7,1.68803255]
[1647036549188,0.97243,2570.8,2570.7,1.68803255]
[1647036549386,1.94469,2570.9,2570.7,1.68803255]
[1647036549984,1.89469,2570.9,2570.7,1.68803255]
[1647036550388,1.89469,2570.9,2570.8,0.9723]
[1647036550586,1.89845101,2570.9,2570.8,0.9723]
[1647036551533,1.89469,2570.9,2570.8,0.9723]
[1647036551733,3.84633,2571.1,2570.8,0.9723]
[1647036551734,0.00376098,2571.0,2570.8,0.9723]
[1647036551933,1.6611,2571.4,2570.8,0.9723]
[1647036551934,0.5,2571.4,2570.8,0.9723]
[1647036552139,1.11083109,2571.3,2570.9,1.44322951]
[1647036552337,1.11083109,2571.3,2571.0,1.44326347]
[1647036552537,1.11083109,2571.3,2571.1,0.47116347]
[1647036553141,0.97207,2571.3,2571.1,0.47116347]
[1647036553537,0.97207,2571.3,2571.2,1.44322347]
[1647036554141,0.97202,2571.4,2571.2,1.44322347]
[1647036554339,0.97202,2571.4,2571.3,0.47116347]
[1647036555288,7.1666028,2571.9,2571.3,0.47116347]
[1647036555289,3.1314,2571.9,2571.3,1.44318347]
[1647036555494,3.1314,2571.9,2571.4,1.44310347]
[1647036555688,1.94389,2572.0,2571.5,0.66546347]
[1647036555888,0.2723819,2571.8,2571.6,0.47116347]
[1647036556288,0.2723819,2571.8,2571.6,0.97187]
[1647036557196,1.2442619,2571.8,2571.6,0.97187]
[1647036557795,1.24845116,2571.8,2571.6,0.97187]
[1647036558442,1.19845116,2571.8,2571.6,0.97187]
[1647036558639,1.1942619,2571.8,2571.6,0.97187]
[1647036558841,1.19845116,2571.8,2571.6,0.97187]
[1647036559043,1.19845116,2571.8,2571.6,2.06801667]
[1647036559441,1.19845116,2571.8,2571.6,0.97187]
[1647036559641,1.19845116,2571.8,2571.7,0.02099317]
[1647036559840,1.19845116,2571.8,2571.7,0.04143479]
[1647036559841,1.1942619,2571.8,2571.7,0.04143479]
[1647036560042,1.19845116,2571.8,2571.7,0.04143479]
[1647036560842,1.19845116,2571.8,2571.7,0.03655593]
[1647036561042,0.05151251,2572.0,2571.7,0.03655593]
[1647036561242,0.00407917,2571.9,2571.8,0.97179]
[1647036561443,0.00407917,2571.9,2571.8,1.94358]
[1647036562288,0.05151251,2572.0,2571.8,1.94358]
[1647036562489,0.05559163,2572.0,2571.8,1.94358]
[1647036563291,0.00407912,2572.0,2571.8,1.94358]
[1647036563488,0.9718,2572.1,2571.8,1.94358]
[1647036563689,0.0040791,2572.0,2571.9,1.94354]
[1647036564689,0.9718,2572.1,2571.9,1.94354]
[1647036564889,0.97589901,2572.1,2571.9,1.94354]
[1647036565933,0.9218,2572.1,2571.9,1.94354]
[1647036566133,0.92589899,2572.1,2571.9,1.94354]
[1647036566837,3.5,2572.0,2571.9,1.94354]
[1647036567038,3.55187232,2572.0,2571.9,1.94354]
[1647036567837,4.5,2571.9,2571.7,0.04450438]
[1647036568037,3.5497252,2571.8,2571.7,0.04450438]
[1647036568235,1.81696953,2572.0,2571.7,0.02099317]
[1647036568438,1.81696953,2572.0,2571.5,1.94417]
[1647036568439,0.82227038,2571.6,2571.5,1.88114589]
[1647036569036,0.32233061,2571.6,2571.5,1.88114589]
[1647036570122,0.32233061,2571.6,2571.5,3.82535589]
[1647036570723,0.03007537,2572.1,2571.5,3.82535589]
[1647036570920,0.03007537,2572.1,2571.6,0.97192]
[1647036570921,0.00409471,2571.7,2571.6,0.97192]
[1647036571328,0.26277162,2572.0,2571.6,2.02733813]
[1647036571620,0.03007537,2572.1,2571.6,2.02733813]
[1647036571621,0.2101333,2571.8,2571.6,2.02733813]
[1647036571821,0.03007537,2572.1,2571.6,2.02733813]
[1647036572223,0.03007537,2572.1,2571.6,2.99925793]
[1647036572521,0.03007537,2572.1,2571.7,0.97192]
[1647036574349,0.03007537,2572.1,2571.7,1.9438355]
[1647036575049,1.77878853,2572.2,2571.9,0.97196]
[1647036575250,1.77878853,2572.2,2571.9,11.72457372]
[1647036575450,1.77878853,2572.2,2571.9,10.75261372]
[1647036575650,1.78315512,2572.2,2571.9,10.75261372]
[1647036575851,1.78315512,2572.2,2572.0,3.10249077]
[1647036575852,0.81119512,2572.2,2572.0,3.10249077]
[1647036576049,0.81119512,2572.2,2572.0,5.04640077]
[1647036576253,0.81119512,2572.2,2572.1,9.78065372]
[1647036576650,0.80682853,2572.2,2572.1,9.78065372]
[1647036582246,0.80682853,2572.2,2572.1,9.68065372]
[1647036583851,0.5,2572.2,2572.1,9.68065372]
[1647036584053,0.55323814,2572.2,2572.1,9.68065372]
[1647036584903,0.55323814,2572.2,2572.1,4.59665372]
[1647036589850,0.55323814,2572.2,2572.1,5.06704497]
[1647036590256,0.22354566,2572.2,2572.1,5.06704497]
[1647036591151,0.22354566,2572.2,2572.1,0.47039125]
[1647036593701,1.33356984,2572.2,2572.1,0.47039125]
[1647036598150,1.16326232,2572.2,2572.1,0.47039125]
[1647036598350,1.33286232,2572.2,2572.1,0.47039125]
[1647036598950,1.32533063,2572.2,2572.1,0.47039125]
[1647036600898,2.18791259,2572.6,2572.2,4.5]
[1647036601097,1.11347464,2572.5,2572.3,0.47039125]
[1647036601504,2.9673,2572.8,2572.3,3.76292001]
[1647036601804,0.97151,2573.1,2572.5,4.0]
[1647036602005,0.23316276,2573.0,2572.6,0.97149]
[1647036602200,0.18316276,2573.0,2572.6,3.04240269]
[1647036602603,0.18316276,2573.0,2572.6,1.94298]
[1647036602801,0.5,2572.8,2572.6,1.94298]
[1647036603202,0.5,2572.8,2572.6,2.9144689]
[1647036605646,0.50436621,2572.8,2572.6,2.9144689]
[1647036606648,0.5,2572.8,2572.6,2.9144689]
[1647036607109,0.50436621,2572.8,2572.6,2.9144689]
[1647036607899,0.5,2572.8,2572.6,2.9144689]
[1647036608101,0.50436621,2572.8,2572.6,2.9144689]
[1647036608500,0.50436621,2572.8,2572.6,1.94298]
[1647036609104,0.5,2572.8,2572.6,1.94298]
[1647036609301,0.50436621,2572.8,2572.6,1.94298]
[1647036609702,0.50436621,2572.8,2572.7,0.04309524]
[1647036610303,0.5,2572.8,2572.7,0.11905588]
[1647036611549,0.5,2572.8,2572.6,1.9001253]
[1647036612950,0.50421886,2572.8,2572.6,1.9001253]
[1647036613152,0.50421886,2572.8,2572.5,4.46784242]
[1647036613153,0.24331883,2572.6,2572.5,4.46784242]
[1647036613352,0.50421886,2572.8,2572.5,4.46784242]
[1647036613954,0.5,2572.8,2572.5,4.46784242]
[1647036614153,0.50407362,2572.8,2572.5,4.65118958]
[1647036614355,0.50407362,2572.8,2572.6,0.97162]
[1647036614992,0.50407362,2572.8,2572.7,0.04309524]
[1647036615196,0.5,2572.8,2572.7,0.04309524]
[1647036615392,0.50407359,2572.8,2572.7,0.04309524]
[1647036616396,0.5,2572.8,2572.7,0.04309524]
[1647036619646,0.52926561,2572.8,2572.7,0.04591241]
[1647036621749,1.53653966,2572.8,2572.7,0.61756773]
[1647036625960,1.03653966,2572.8,2572.7,0.61756773]
[1647036626360,1.03653966,2572.8,2572.6,0.97162]
[1647036626559,1.49136306,2572.7,2572.6,0.97162]
[1647036628064,0.03335973,2572.8,2572.7,5.0]
[1647036628275,0.03335973,2572.8,2572.6,0.97162]
[1647036628465,0.02926561,2572.8,2572.6,1.68331081]
[1647036628666,0.00409384,2572.8,2572.7,0.71169081]
[1647036628967,0.00409384,2572.8,2572.6,2.65467081]
[1647036629166,0.97136,2573.3,2572.7,6.96983743]
[1647036629367,0.01637134,2573.4,2572.9,0.97128]
[1647036629605,0.05394433,2574.0,2573.2,0.9711175]
[1647036629794,0.05394433,2574.0,2573.3,3.88449]
[1647036629996,0.05394433,2574.0,2573.3,3.95847689]
[1647036630596,1.87618301,2573.9,2573.7,0.97113]
[1647036631096,0.97112,2573.9,2573.7,0.97113]
[1647036631497,4.0489,2574.1,2573.7,0.97113]
[1647036631699,2.8881,2574.1,2573.7,0.97113]
[1647036631900,0.5,2574.2,2573.7,1.94229]
[1647036632099,0.5,2574.2,2573.8,2.91305]
[1647036632303,0.04890276,2574.3,2573.8,2.91305]
[1647036632304,0.88773266,2574.0,2573.8,2.91305]
[1647036632900,1.85880266,2574.0,2573.8,2.91305]
[1647036633099,1.85444176,2574.0,2573.8,2.91305]
[1647036633341,0.21067243,2573.9,2573.8,2.91305]
[1647036633544,1.85444176,2574.0,2573.8,2.91305]
[1647036633746,1.85444176,2574.0,2573.8,2.18818729]
[1647036636546,1.80444176,2574.0,2573.8,2.18818729]
[1647036637205,2.30879804,2574.0,2573.8,2.18818729]
[1647036637405,1.80879804,2574.0,2573.8,2.18818729]
[1647036638007,0.92107,2574.0,2573.8,2.18818729]
[1647036638205,0.92542628,2574.0,2573.8,2.18818729]
[1647036639005,0.87542628,2574.0,2573.8,2.18818729]
[1647036639305,0.87107,2574.0,2573.8,2.18818729]
[1647036639503,0.87542628,2574.0,2573.8,2.18818729]
[1647036640311,0.87107,2574.0,2573.8,2.18818729]
[1647036640711,0.87529559,2574.0,2573.8,2.18818729]
[1647036641645,0.87107,2574.0,2573.8,2.18818729]
[1647036641854,0.87529559,2574.0,2573.8,2.18818729]
[1647036642751,0.87107,2574.0,2573.8,2.18818729]
[1647036643152,0.87529559,2574.0,2573.8,2.18818729]
[1647036643751,0.26843782,2573.9,2573.8,2.18818729]
[1647036643958,0.87107,2574.0,2573.8,1.21708729]
[1647036644251,0.87514822,2574.0,2573.8,2.18822729]
[1647036645202,0.87107,2574.0,2573.8,2.18822729]
[1647036645398,0.87514822,2574.0,2573.8,2.18822729]
[1647036646399,0.87107,2574.0,2573.8,2.18822729]
[1647036646601,0.87514822,2574.0,2573.8,2.18822729]
[1647036647604,0.87107,2574.0,2573.8,2.18822729]
[1647036648003,0.87515469,2574.0,2573.8,2.18822729]
[1647036648204,0.94811713,2573.9,2573.8,2.18822729]
[1647036651358,6.0,2573.8,2573.7,1.94229]
[1647036651556,4.50238527,2573.8,2573.7,0.97113]
[1647036651757,6.4034883,2573.8,2573.1,0.97159]
[1647036651954,6.4034883,2573.8,2573.0,3.44318]
[1647036651955,0.04933252,2573.6,2573.0,3.44318]
[1647036652213,0.05423221,2573.4,2573.0,3.44318]
[1647036652410,1.02883426,2573.2,2573.0,3.44318]
[1647036652608,3.54856992,2573.1,2573.0,3.44318]
[1647036653009,3.54856992,2573.1,2573.0,1.5]
[1647036654413,4.52023992,2573.1,2572.9,1.74667994]
[1647036654810,3.5,2573.0,2572.9,1.74667994]
[1647036655011,1.02023992,2573.1,2572.9,2.40499203]
[1647036655211,1.02432391,2573.1,2572.9,1.74667994]
[1647036655412,3.55317912,2573.0,2572.9,1.74667994]
[1647036658362,0.05317912,2573.0,2572.9,1.74667994]
[1647036659061,3.55317912,2573.0,2572.9,1.74667994]
[1647036659463,0.05317912,2573.0,2572.9,1.74667994]
[1647036659903,3.55317912,2573.0,2572.9,1.74667994]
[1647036660102,0.05317912,2573.0,2572.9,1.74667994]
[1647036660303,3.55317912,2573.0,2572.9,1.74667994]
[1647036660905,0.05317912,2573.0,2572.9,1.74667994]
[1647036661505,3.55317912,2573.0,2572.9,1.74667994]
[1647036662007,0.05317912,2573.0,2572.9,1.74667994]
[1647036662604,0.96965089,2573.0,2572.9,1.74667994]
[1647036663205,0.05317912,2573.0,2572.9,2.40526985]
[1647036663448,3.55317912,2573.0,2572.9,2.40526985]
[1647036663646,0.05317912,2573.0,2572.9,2.40526985]
[1647036664051,0.29204203,2573.0,2572.9,2.40526985]
[1647036664252,3.79204203,2573.0,2572.9,2.40526985]
[1647036664452,3.55317912,2573.0,2572.9,2.40526985]
[1647036665455,4.46959206,2573.0,2572.9,1.74667994]
[1647036668906,6.41305176,2573.0,2572.7,0.97173]
[1647036669108,0.91641294,2572.9,2572.7,0.97173]
[1647036670608,0.92049696,2572.9,2572.7,0.97173]
[1647036671647,0.91641294,2572.9,2572.7,0.97173]
[1647036671846,0.92049696,2572.9,2572.7,0.97173]
[1647036672851,0.91641294,2572.9,2572.7,0.97173]
[1647036673052,0.92049696,2572.9,2572.7,0.97173]
[1647036673253,0.00408402,2572.9,2572.7,0.97173]
[1647036673454,0.92041005,2572.9,2572.7,0.97173]
[1647036673953,0.91632603,2572.9,2572.7,0.97173]
[1647036674254,0.00408402,2572.9,2572.7,0.97173]
[1647036674620,0.26841696,2572.9,2572.7,0.97173]
[1647036674811,0.26841696,2572.9,2572.8,0.65897709]
[1647036675011,0.26841696,2572.9,2572.7,0.97173]
[1647036675210,1.23600294,2572.9,2572.6,1.92165208]
[1647036675410,1.23600294,2572.9,2572.7,0.65899715]
[1647036676510,1.23600294,2572.9,2572.7,1.63072715]
[1647036676710,1.24008696,2572.9,2572.7,0.97173]
[1647036677513,1.23600294,2572.9,2572.7,0.97173]
[1647036677714,1.23600294,2572.9,2572.8,0.65910532]
[1647036677915,0.26841696,2572.9,2572.8,0.65910532]
[1647036678750,3.76433294,2572.9,2572.8,0.65910532]
[1647036678950,0.26433294,2572.9,2572.8,0.65910532]
[1647036679556,3.76433294,2572.9,2572.8,0.65910532]
[1647036679755,0.26433294,2572.9,2572.8,0.65910532]
[1647036679957,3.76433294,2572.9,2572.8,0.65910532]
[1647036680160,0.26433294,2572.9,2572.8,0.65910532]
[1647036680855,1.18118043,2572.9,2572.8,0.65910532]
[1647036681256,0.26433294,2572.9,2572.8,0.65910532]
[1647036683905,1.18204216,2572.9,2572.8,0.65910532]
[1647036689257,1.18204216,2572.9,2572.8,0.681155]
[1647036692709,0.26433294,2572.9,2572.8,0.681155]
[1647036692911,3.8909083,2573.0,2572.9,1.38487654]
[1647036693346,3.8868243,2573.0,2572.9,1.38487654]
[1647036693550,3.8909083,2573.0,2572.9,1.38487654]
[1647036694152,0.13881002,2573.0,2572.9,1.38487654]
[1647036694351,0.97167,2573.1,2573.0,0.07114796]
[1647036694553,1.94262,2573.5,2573.0,0.07114796]
[1647036694754,1.95895334,2573.5,2573.1,0.681155]
[1647036694952,0.01633334,2573.5,2573.2,0.08157729]
[1647036695152,0.01633334,2573.5,2573.2,0.76273229]
[1647036695351,0.98763334,2573.5,2573.3,1.652455]
[1647036695554,0.98763334,2573.5,2573.4,0.08170728]
[1647036695751,0.9713,2573.5,2573.4,0.08170728]
[1647036696053,0.97538376,2573.5,2573.4,0.08170728]
[1647036696854,0.9713,2573.5,2573.4,0.08170728]
[1647036697112,0.00408371,2573.6,2573.4,0.08170728]
[1647036697308,0.00408371,2573.6,2573.5,1.652415]
[1647036698112,1.16556,2573.7,2573.5,1.652415]
[1647036698311,0.19838367,2573.7,2573.6,0.08933005]
[1647036698509,0.19838367,2573.7,2573.6,3.68391505]
[1647036698909,5.34883221,2574.1,2573.7,0.681155]
[1647036699110,0.01633221,2574.1,2573.9,0.681155]
[1647036699410,1.9223607,2574.4,2573.9,3.75330582]
[1647036699611,0.7040607,2574.4,2573.9,3.75330582]
[1647036700011,0.97109,2574.2,2574.0,0.681155]
[1647036700513,0.97109,2574.2,2574.0,1.652265]
[1647036702968,0.00435616,2574.2,2574.0,1.652265]
[1647036703167,0.00435616,2574.2,2574.1,3.594185]
[1647036703970,0.21648782,2574.3,2574.1,3.594185]
[1647036704613,0.22084396,2574.3,2574.1,3.594185]
[1647036705205,0.21648782,2574.3,2574.2,0.681155]
[1647036705403,0.21648782,2574.3,2574.2,0.652672]
[1647036705404,0.00435611,2574.3,2574.2,0.652672]
[1647036705604,0.00435611,2574.3,2574.2,2.594552]
[1647036706504,4.70088301,2574.7,2574.2,2.594552]
[1647036706705,0.00421233,2574.4,2574.3,0.652672]
[1647036707106,0.97518233,2574.4,2574.3,0.652672]
[1647036707713,0.97097,2574.4,2574.3,0.652672]
[1647036709155,0.92097,2574.4,2574.3,0.652672]
[1647036709354,1.85577283,2574.4,2574.3,0.652672]
[1647036710155,0.92097,2574.4,2574.3,0.652672]
[1647036710356,0.00406599,2574.5,2574.3,0.652672]
[1647036710554,0.93866133,2574.5,2574.4,0.652672]
[1647036710854,0.00406599,2574.5,2574.4,0.652672]
[1647036711055,0.00406599,2574.5,2574.4,1.67027971]
[1647036711259,0.93459796,2574.7,2574.4,1.67027971]
[1647036711459,0.5,2574.8,2574.4,2.64115971]
[1647036711657,0.00406595,2574.6,2574.4,2.64115971]
[1647036712305,0.00406595,2574.6,2574.4,1.70857815]
[1647036712505,0.97085,2574.7,2574.4,1.70857815]
[1647036712705,0.00406592,2574.6,2574.4,1.70857815]
[1647036713107,0.00406592,2574.6,2574.5,0.652672]
[1647036713305,0.00406592,2574.6,2574.5,2.594402]
[1647036713706,0.97085,2574.7,2574.5,2.594402]
[1647036713908,0.97493639,2574.7,2574.5,2.594402]
[1647036714906,0.97085,2574.7,2574.5,2.594402]
[1647036715408,0.97493637,2574.7,2574.3,3.48003446]
[1647036715608,0.22002022,2574.6,2574.3,3.48003446]
[1647036716054,0.22002022,2574.6,2574.3,2.50917446]
[1647036716255,0.22410666,2574.6,2574.5,2.30576062]
[1647036716958,0.04201765,2574.6,2574.5,2.30576062]
[1647036717360,0.03793121,2574.6,2574.5,2.30576062]
[1647036717564,0.03793121,2574.6,2574.4,1.94173]
[1647036718760,0.04201302,2574.6,2574.4,1.94173]
[1647036719362,0.04201302,2574.6,2574.5,1.94173]
[1647036719625,0.03793121,2574.6,2574.5,1.94173]
[1647036720016,0.04201302,2574.6,2574.5,1.94173]
[1647036720815,0.03793121,2574.6,2574.5,1.94173]
[1647036723955,0.09488882,2574.6,2574.5,1.94173]
[1647036727611,0.09488882,2574.6,2574.5,2.21476085]
[1647036729015,0.07724697,2574.6,2574.5,2.21476085]
[1647036730116,0.02028936,2574.6,2574.5,2.23661655]
[1647036732462,0.02028936,2574.6,2574.5,2.88990522]
[1647036733764,4.93243603,2574.7,2574.5,2.88990522]
[1647036733963,4.93243603,2574.7,2574.6,0.27303085]
[1647036734162,4.92807675,2574.7,2574.6,0.27303085]
[1647036734363,4.93243603,2574.7,2574.6,0.27303085]
[1647036734618,4.93243603,2574.7,2574.6,0.92680922]
[1647036735304,4.92807675,2574.7,2574.6,0.92680922]
[1647036735806,4.92807675,2574.7,2574.5,1.9635857]
[1647036736808,4.93228888,2574.7,2574.5,1.9635857]
[1647036737009,3.23700575,2574.7,2574.5,1.9635857]
[1647036737615,3.23279362,2574.7,2574.5,1.9635857]
[1647036738015,3.23700575,2574.7,2574.5,1.9635857]
[1647036738963,3.23279362,2574.7,2574.5,1.9635857]
[1647036739162,0.23456971,2574.6,2574.5,1.9635857]
[1647036743814,0.21445109,2574.6,2574.5,1.9635857]
[1647036748259,0.21445109,2574.6,2574.5,2.78819905]
[1647036749616,0.21445109,2574.6,2574.5,1.9635857]
[1647036751712,0.00408557,2574.7,2574.5,2.67614499]
[1647036752013,4.1795188,2574.8,2574.5,2.67614499]
[1647036752214,4.1795188,2574.8,2574.6,0.97071]
[1647036752412,0.00408557,2574.7,2574.6,1.68326929]
[1647036753214,4.1795188,2574.8,2574.6,1.68326929]